Cogmind - Beta 14 @@@ ROGUE MODE // 2024.12.23 @ 19:59:34 Player: Mathewnd Result: Destroyed by G-73 Enforcer with Heavy Laser Performance ------------- Evolutions (8) 4000 Regions Visited (16) 3200 Robots Destroyed (69) 345 Value Destroyed (2351) 2351 Prototype IDs (8) 160 Alien Tech Used (0) 0 Bonus (1978) 1978 TOTAL SCORE: 12034 Bonus ------- High Alert Combat Kills 12 Follower Combat Kills 1705 Built Enhanced Grunts 300 Friendly Fire -39 Cogmind --------- Core Integrity 0/1450 Matter 300/300 Energy 99/100 System Corruption 7% Temperature Cool (9) Movement Core (50) Location -2/Research Parts ------- > --- POWER (2) -------- (None) > --- PROPULSION (6) --- (None) > --- UTILITY (13) ----- Enhanced Optical Array Graphene Brace Experimental System Shield > --- WEAPON (2) ------- (None) > --- INVENTORY (5) ---- Improved Reaction Control System Hypervelocity EM Gauss Rifle Fusion Bomb Launcher Heavy Flail Enhanced Force Lance Peak State ------------ > --- POWER ------------ Light Particle Reactor > --- PROPULSION ------- Field Propulsion Drive Impulse Thruster Q-thruster Impulse Thruster Array > --- UTILITY ---------- Triangulator Enhanced Optical Array Enhanced Optical Array Advanced Signal Interpreter Improved Terrain Scanner Core Analyzer Advanced Transmission Jammer ECM Suite Advanced Reaction Control System Graphene Brace Hacking Suite Hacking Suite Experimental System Shield > --- WEAPON ----------- Hypervelocity EM Gauss Rifle Heavy Flail > --- INVENTORY -------- Improved Reaction Control System Fusion Bomb Launcher [Rating: 120] Favorites ----------- Power Light Nuclear Core Engine Light Ion Engine Power Core Light Nuclear Core Reactor Quantum Reactor Propulsion Improved Flight Unit Treads Armored Treads Leg Aluminum Leg Hover Unit Gyrokinetic Inverter Flight Unit Improved Flight Unit Utility Hacking Suite Device Improved Sensor Array Storage Medium Storage Unit Processor Enhanced Optical Array Hackware Hacking Suite Protection Medium Armor Plating Weapon Assault Rifle Energy Gun Advanced Variable Charge Gun Ballistic Gun Assault Rifle Launcher Heavy Rocket Launcher Impact Weapon Heavy Flail Slashing Weapon Chainsword Piercing Weapon Enhanced Force Lance Build | -11 -10 -9 -8 -7 -6 -6 -6 -5 -5 -5 -5 -5 -4 -3 -3 -2 ------- Run | Yrd Mat Mat Mat Fac Fac Was Fac Fac Ext Cet Arc Hub Fac Res Tes Res Slots Evolved 16 | . . 2 2 2 2 . . 2 . . . . 2 2 . 2 Power 1 | . . . . . . . . . . . . . . 1 . . Propulsion 4 | . . 2 . 1 . . . . . . . . . 1 . . Utility 11 | . . . 2 1 2 . . 2 . . . . 2 . . 2 Weapon . | . . . . . . . . . . . . . . . . . Parts Attached 148 | 6 3 10 6 13 6 . 9 19 18 5 1 13 9 17 4 9 Power 13 | 1 . 1 1 1 . . 3 1 1 1 . . 1 1 . 1 Engine 2 | 1 . . . . . . 1 . . . . . . . . . Core 7 | . . 1 1 1 . . 2 1 1 . . . . . . . Reactor 4 | . . . . . . . . . . 1 . . 1 1 . 1 Propulsion 45 | 2 . 8 . 6 2 . . 5 3 1 . 5 3 8 1 1 Treads 12 | 2 . 6 . . . . . . 2 1 . 1 . . . . Leg 2 | . . 2 . . . . . . . . . . . . . . Wheel . | . . . . . . . . . . . . . . . . . Hover 11 | . . . . . . . . . . . . 4 3 3 . 1 Flight 20 | . . . . 6 2 . . 5 1 . . . . 5 1 . Utility 48 | 1 2 . 3 4 3 . 4 7 2 . . 5 4 7 2 4 Device 23 | . . . . 3 1 . 3 4 1 . . . 1 6 1 3 Storage 4 | 1 1 . . 1 . . . . . . . . 1 . . . Processor 10 | . 1 . . . . . 1 1 . . . 5 1 1 . . Hackware 8 | . . . . . 2 . . 2 1 . . . 1 . 1 1 Protection 3 | . . . 3 . . . . . . . . . . . . . Artifact . | . . . . . . . . . . . . . . . . . Weapon 42 | 2 1 1 2 2 1 . 2 6 12 3 1 3 1 1 1 3 Energy Gun 5 | 1 . . 1 . . . . . . 1 1 . . . 1 . Energy Cannon . | . . . . . . . . . . . . . . . . . Ballistic Gun 3 | 1 1 1 . . . . . . . . . . . . . . Ballistic Cannon . | . . . . . . . . . . . . . . . . . Launcher 8 | . . . 1 . . . . . 6 1 . . . . . . Special Weapon . | . . . . . . . . . . . . . . . . . Impact Weapon 2 | . . . . . . . . . . . . . . 1 . 1 Slashing Weapon 22 | . . . . 2 1 . 2 6 6 1 . 3 1 . . . Piercing Weapon 2 | . . . . . . . . . . . . . . . . 2 Special Melee Weapon . | . . . . . . . . . . . . . . . . . Unidentified Prototypes 6 | . . . . . 1 . . . . 1 . . . 1 3 . Parts Lost 50 | . . . 2 . 3 . . 7 6 4 . 5 5 . . 18 Power 6 | . . . . . . . . 1 1 . . 1 1 . . 2 Propulsion 16 | . . . . . 2 . . 3 3 1 . . 2 . . 5 Utility 20 | . . . 1 . 1 . . 3 1 2 . 1 1 . . 10 Weapon 8 | . . . 1 . . . . . 1 1 . 3 1 . . 1 Highest Loss Streak 11 | . . . 1 . 2 . . 5 3 4 . 3 5 . . 11 To Critical Strikes 1 | . . . . . . . . . . 1 . . . . . . Average Slot Usage (%) 80 | . 88 99 90 99 99 100 96 87 71 38 45 76 54 51 76 70 Engine 1 | . 14 3 . . . . . . . . . . . . . . Core 3 | . . 7 9 7 6 6 6 4 4 . . . . . . . Treads 8 | . 28 37 36 . . . . . . 3 5 6 . . . . Hover 1 | . . . . . . . . . . . . 5 19 9 . . Flight 14 | . . . . 37 32 33 33 27 19 . . . . 3 15 13 Device 10 | . . . . 22 19 20 19 21 10 . . . 3 4 16 22 Storage 5 | . 14 11 9 7 6 6 6 5 5 . . . . . . . Processor 11 | . 2 11 9 7 6 6 6 10 11 11 11 36 21 17 19 11 Hackware 8 | . . . . . 13 13 13 12 11 11 11 10 6 9 14 15 Energy Gun 1 | . 8 . 1 . . . . . . 3 9 7 . . 1 . Ballistic Gun 4 | . 19 22 16 . . . . . . . . . . . . . Slashing Weapon 3 | . . . . 14 13 13 9 1 3 . . 2 3 . . . Peak Build Rating 120 | 6 8 22 26 36 51 52 60 63 63 36 44 71 76 90 104 120 Average Rating 46 | 4 6 17 24 31 45 51 54 58 46 33 41 56 51 57 99 100 On Entrance 40 | . 6 8 22 26 36 51 52 56 51 32 36 44 36 39 90 104 Naked Turns . | . . . . . . . . . . . . . . . . . Heaviest Build 40 | 11 27 30 40 40 25 24 26 26 24 25 31 31 18 24 29 31 Greatest Support 80 | 40 40 80 80 80 30 27 27 27 23 23 20 47 47 33 31 31 Greatest Overweight (x) 8 | . . . . . 1 . . 5 2 6 1 2 1 1 . 8 Average Overweight (x) . | . . . . . . . . . . 1 1 . . . . . Largest Inventory Capacity 15 | 8 15 15 15 15 10 10 10 10 10 10 5 5 5 5 5 5 Average Capacity 9 | 7 14 15 15 10 10 10 10 10 10 5 5 5 5 5 5 5 Most Carried 15 | 8 15 15 15 14 9 8 10 10 10 9 5 5 5 5 5 5 Average Carried 7 | 5 10 14 14 8 7 7 9 6 6 5 5 4 1 2 3 4 Final Capacity 15 | 8 15 15 15 10 10 10 10 10 10 5 5 5 5 5 5 5 Final Carried 15 | 6 15 15 14 9 7 8 10 6 7 5 5 4 1 5 3 5 Class Distribution -------------------- 27% | Mutant 23% | Hacker-Mutant 15% | Hacker-Ninja 7% | Scavenger-Assassin 7% | Infiltrator-Ninja 7% | Scavenger-Mutant 4% | Hacker-Scout 3% | Scavenger-Scout Dominant Class ---------------- Mutant | -10/Materials Mutant | -9/Materials Mutant | -8/Materials Infiltrator-Ninja | -7/Factory Hacker-Ninja | -6/Factory Hacker-Ninja | -6/Waste Hacker-Ninja | -6/Factory Hacker-Scout | -5/Factory Scavenger-Assassin | -5/Extension Scavenger-Mutant | -5/Cetus Scavenger-Mutant | -5/Archives Scavenger-Mutant | -5/Hub_04(d) Mutant | -4/Factory Hacker-Mutant | -3/Research Hacker-Mutant | -3/Testing Hacker-Mutant | -2/Research Resources | -11 -10 -9 -8 -7 -6 -6 -6 -5 -5 -5 -5 -5 -4 -3 -3 -2 ----------- Run | Yrd Mat Mat Mat Fac Fac Was Fac Fac Ext Cet Arc Hub Fac Res Tes Res Matter Collected 2448 | 219 34 430 261 173 . . 97 72 405 80 75 248 80 161 . 113 Remotely . | . . . . . . . . . . . . . . . . . Salvage Created 2551 | . 97 571 355 25 . . 128 72 520 . 39 162 148 143 . 291 Parts 165 | . 14 28 31 4 . . 14 5 31 . . 6 7 8 . 17 Haulers Intercepted 1 | . . 1 . . . . . . . . . . . . . . Recyclers Shooed . | . . . . . . . . . . . . . . . . . Parts Field Recycled . | . . . . . . . . . . . . . . . . . Retrieved Matter . | . . . . . . . . . . . . . . . . . Parts Self-Destructed . | . . . . . . . . . . . . . . . . . Prevented . | . . . . . . . . . . . . . . . . . Kills | -11 -10 -9 -8 -7 -6 -6 -6 -5 -5 -5 -5 -5 -4 -3 -3 -2 ------- Run | Yrd Mat Mat Mat Fac Fac Was Fac Fac Ext Cet Arc Hub Fac Res Tes Res Combat Hostiles Destroyed 50 | . 3 12 13 . . . . 3 8 . . 2 3 2 . 4 Melee 16 | . . . . . . . . 3 6 . . 2 . 1 . 4 Guns 28 | . 3 12 13 . . . . . . . . . . . . . AOE 5 | . . . . . . . . . 2 . . . 3 . . . Classes Destroyed 11 | . 2 3 1 1 . . . . 1 . . . 1 2 . . Builder 4 | . . . . . . . . . 3 . . 1 . . . . Tunneler 1 | . . . . . . . . . . . . . . 1 . . Hauler 1 | . . 1 . . . . . . . . . . . . . . Recycler 1 | . . . . . . . . . . . . . 1 . . . Operator 6 | . . . . 1 . . 3 . 1 . 1 . . . . . Watcher 6 | . 2 . . . . . 2 . 1 . . 1 . . . . Swarmer 17 | . 3 . 8 . . . . 3 . . . . 3 . . . Grunt 26 | . . 11 3 . . . . . 7 . . 2 . 1 . 2 Brawler 1 | . . 1 . . . . . . . . . . . . . . Sentry 3 | . . . 2 . . . . . 1 . . . . . . . Programmer 3 | . . . . . . . . . . . . . . 1 . 2 Best Kill Streak 5 | . 2 3 5 1 . . 1 3 2 . 1 1 3 2 . 2 Combat Bots Only 5 | . 2 3 5 . . . . 3 2 . . 1 3 1 . 2 Max Kills in Single Turn 3 | . 2 2 2 1 . . 1 1 2 . 1 1 3 1 . 1 Gunslinging 1 | . 1 1 1 . . . . . . . . . . . . . Exploded 3 | . . . . . . . . . 2 . . . 3 . . . Melee 1 | . . . . . . . . 1 1 . . 1 . 1 . 1 Uniques/NPCs Destroyed 1 | . . . . . . . . . . 1 . . . . . . A7 (-5/Cetus) Combat | -11 -10 -9 -8 -7 -6 -6 -6 -5 -5 -5 -5 -5 -4 -3 -3 -2 -------- Run | Yrd Mat Mat Mat Fac Fac Was Fac Fac Ext Cet Arc Hub Fac Res Tes Res Hostile Shots Fired 692 | . 9 61 109 4 34 . 2 47 59 27 . 62 83 23 4 168 Missed 250 | . 2 22 34 2 14 . 1 16 22 5 . 19 37 11 3 62 Damage Taken 8633 | . 48 508 782 37 310 . 18 506 1002 545 . 825 1300 287 23 2442 Core 3580 | . 15 40 79 20 90 . 18 66 210 357 . 366 685 146 23 1465 Absorbed by Shields 132 | . . . . . . . . . 52 80 . . . . . . Regen/Repaired (Parts) 18 | . . . . . . . 18 . . . . . . . . . Core Remaining (%) 75 | 100 94 90 85 97 . . 87 . . . . . 40 . 87 . Volleys Fired 133 | . 11 42 44 . . . . . 11 5 8 9 . . . 3 Largest 2 | . 2 2 2 . . . . . 2 1 2 2 . . . 1 Hottest 174 | . 60 43 76 . . . . . 78 80 174 174 . . . 40 Shots Fired 245 | . 21 84 87 . . . . . 12 6 13 19 . . . 3 Gun 229 | . 21 84 86 . . . . . . 3 13 19 . . . 3 Cannon . | . . . . . . . . . . . . . . . . . Launcher 16 | . . . 1 . . . . . 12 3 . . . . . . Special . | . . . . . . . . . . . . . . . . . Kinetic 177 | . 14 84 79 . . . . . . . . . . . . . Thermal 49 | . 7 . 7 . . . . . . 3 13 19 . . . . Explosive 16 | . . . 1 . . . . . 12 3 . . . . . . Electromagnetic 3 | . . . . . . . . . . . . . . . . 3 Robot Hit Streak 14 | . 10 13 14 . . . . . 1 3 3 11 . . . 2 Robot Miss Streak 7 | . 2 3 7 . . . . . 1 . 2 1 . . . 1 Penetration Max . | . . . . . . . . . . . . . . . . . Secondary Targets 4 | . 1 1 2 . . . . . . . . . . . . . Max Gunslinging Chain 1 | . 1 1 1 . . . . . . . . . . . . . Shots Hit Robots 221 | . 15 51 49 3 2 . 10 8 15 2 7 23 2 8 . 26 Core Hits 112 | . 7 25 21 . 1 . 3 3 18 10 2 7 5 1 . 9 Critical Kills . | . . . . . . . . . . . . . . . . . Critical Parts Destroyed 2 | . . 1 . . . . . . . . . . . 1 . . Critical Strikes 11 | . . 1 . 2 1 . 1 1 1 . . 1 1 1 . 1 Destroy 1 | . . 1 . . . . . . . . . . . . . . Smash 1 | . . . . . . . . . . . . . . 1 . . Sever 8 | . . . . 2 1 . 1 1 1 . . 1 1 . . . Impale 1 | . . . . . . . . . . . . . . . . 1 Melee Attacks 152 | . . . . 14 6 . 17 24 19 . . 8 5 11 3 45 Impact 22 | . . . . . . . . . . . . . . 11 3 8 Slashing 93 | . . . . 14 6 . 17 24 19 . . 8 5 . . . Piercing 37 | . . . . . . . . . . . . . . . . 37 Sneak Attacks 9 | . . . . 1 . . 1 . 4 . . 1 1 1 . . Combat Hostiles 3 | . . . . . . . . . 3 . . . . . . . Follow-up Attacks 3 | . . . . . . . 2 . . . . 1 . . . . Damage Inflicted 7872 | . 187 653 681 173 34 . 528 308 1564 371 189 885 745 463 . 1091 Guns 2226 | . 183 653 681 . . . . . . 39 189 477 . . . 4 Cannons . | . . . . . . . . . . . . . . . . . Explosions 1531 | . . . . . . . . . 582 332 . . 617 . . . Melee 4095 | . . . . 173 34 . 528 308 982 . . 408 117 463 . 1082 Ramming 20 | . 4 . . . . . . . . . . . 11 . . 5 Kinetic 1414 | . 136 653 625 . . . . . . . . . . . . . Thermal 1425 | . 47 . 56 . . . . . . 39 189 477 617 . . . Explosive 914 | . . . . . . . . . 582 332 . . . . . . Electromagnetic 4 | . . . . . . . . . . . . . . . . 4 Impact 463 | . . . . . . . . . . . . . . 463 . . Slashing 2550 | . . . . 173 34 . 528 308 982 . . 408 117 . . . Piercing 1082 | . . . . . . . . . . . . . . . . 1082 Highest Corruption 13 | . . . . . . . . . 11 11 11 13 4 6 6 7 Average Corruption 7 | . . . . . . . . . 11 11 11 11 2 5 6 3 Corruption Purged . | . . . . . . . . . . . . . . . . . Corruption Blocked . | . . . . . . . . . . . . . . . . . Effects 86 | . . . . . . . . . 17 16 6 24 1 10 3 9 Message Errors 18 | . . . . . . . . . 1 3 3 5 . 2 . 4 Matter Fused 23 | . . . . . . . . . 6 5 1 6 . 3 1 1 Heat Flow Errors 11 | . . . . . . . . . . 3 . 3 . 1 2 2 Energy Discharges 10 | . . . . . . . . . 2 2 1 3 1 1 . . Parts Rejected 4 | . . . . . . . . . 2 . . 2 . . . . Data Loss (minor) 6 | . . . . . . . . . 1 1 1 1 . 2 . . Data Loss (major) 6 | . . . . . . . . . 2 . . 1 . 1 . 2 Misfires 2 | . . . . . . . . . . 1 . 1 . . . . Alerts 1 | . . . . . . . . . . . . 1 . . . . Misdirections 5 | . . . . . . . . . 3 1 . 1 . . . . Overload Shots . | . . . . . . . . . . . . . . . . . Overflow Damage 691 | . . . . 57 . . 177 25 106 . . . 108 170 . 48 Projectiles . | . . . . . . . . . . . . . . . . . Explosions 109 | . . . . . . . . . 1 . . . 108 . . . Melee 582 | . . . . 57 . . 177 25 105 . . . . 170 . 48 Knockbacks . | . . . . . . . . . . . . . . . . . Impact . | . . . . . . . . . . . . . . . . . Kinetic . | . . . . . . . . . . . . . . . . . Secondary . | . . . . . . . . . . . . . . . . . Self-Inflicted Damage 190 | . . . . . . . . . . . . . 188 . . 2 Shots 2 | . . . . . . . . . . . . . 2 . . . Rammed 3 | . 1 . . . . . . . . . . . 1 . . 1 Targets Rammed 3 | . 1 . . . . . . . . . . . 1 . . 1 Kicked . | . . . . . . . . . . . . . . . . . Crushed . | . . . . . . . . . . . . . . . . . Highest Temperature 521 | . . 17 40 . 87 . 5 . 33 251 331 521 44 151 271 259 Average Temperature 99 | . . 6 12 . 39 . 3 . 25 95 130 161 21 84 126 134 Received Heat Transfer 1688 | . . 264 243 9 129 . 9 63 259 30 . 108 190 24 . 360 Effects 7 | . . . . . . . . . . . . 7 . . . . Shutdowns 1 | . . . . . . . . . . . . 1 . . . . Energy Bleed 1 | . . . . . . . . . . . . 1 . . . . Short Circuit 1 | . . . . . . . . . . . . 1 . . . . Damage (major) 4 | . . . . . . . . . . . . 4 . . . . Siege Activations . | . . . . . . . . . . . . . . . . . Robots Corrupted 1 | . . . . . . . . . . . . . . 1 . . Combat Hostiles 1 | . . . . . . . . . . . . . . 1 . . Parts Fried 2 | . . . . . . . . . . . . . . 2 . . Impact Corruptions 6 | . . . . . . . . . . . . . . 6 . . Robots Melted . | . . . . . . . . . . . . . . . . . Combat Hostiles . | . . . . . . . . . . . . . . . . . Parts Melted 2 | . . . . . . . . . . . 2 . . . . . Heat Transferred 1588 | . 100 . 125 . . . . . . 37 259 592 475 . . . Parts Sabotaged . | . . . . . . . . . . . . . . . . . Parts Stolen . | . . . . . . . . . . . . . . . . . Parts Stripped . | . . . . . . . . . . . . . . . . . Power Chain Reactions . | . . . . . . . . . . . . . . . . . Alert | -11 -10 -9 -8 -7 -6 -6 -6 -5 -5 -5 -5 -5 -4 -3 -3 -2 ------- Run | Yrd Mat Mat Mat Fac Fac Was Fac Fac Ext Cet Arc Hub Fac Res Tes Res Peak Influence 516 | . 123 218 341 202 292 117 283 111 362 360 357 516 222 265 255 259 Initial 213 | . . 18 73 144 32 102 81 . 11 202 144 124 213 100 148 143 Average 135 | . 37 113 181 101 101 108 112 66 119 332 304 298 163 156 205 111 Maximum Alert Level 2 | . . 1 1 1 1 . 1 . 1 1 1 2 1 1 1 1 Low Security (%) 77 | 100 100 90 71 99 91 100 79 100 88 . 12 39 27 81 42 88 Level 1 20 | . . 9 28 . 8 . 20 . 11 100 87 27 72 18 57 11 Level 2 2 | . . . . . . . . . . . . 33 . . . . Level 3 . | . . . . . . . . . . . . . . . . . Level 4 . | . . . . . . . . . . . . . . . . . Level 5 . | . . . . . . . . . . . . . . . . . High Security . | . . . . . . . . . . . . . . . . . Max Security . | . . . . . . . . . . . . . . . . . Squads Dispatched 26 | . 1 1 . 1 1 . 4 2 4 . . 6 1 1 2 2 Investigation 9 | . 1 1 . 1 . . 3 1 2 . . . . . . . Extermination 3 | . . . . . . . . . . . . 1 . . . 2 Reinforcement 14 | . . . . . 1 . 1 1 2 . . 5 1 1 2 . Assault . | . . . . . . . . . . . . . . . . . Garrison . | . . . . . . . . . . . . . . . . . Intercept . | . . . . . . . . . . . . . . . . . Searches Triggered . | . . . . . . . . . . . . . . . . . Construction Impeded 2 | . . . . . . . . . 1 . . . 1 . . . Haulers Reinforced . | . . . . . . . . . . . . . . . . . Active Scanning Responses . | . . . . . . . . . . . . . . . . . Cargo Convoy Interrupts 1 | . . . . . . . . . . . . . 1 . . . Stealth | -11 -10 -9 -8 -7 -6 -6 -6 -5 -5 -5 -5 -5 -4 -3 -3 -2 --------- Run | Yrd Mat Mat Mat Fac Fac Was Fac Fac Ext Cet Arc Hub Fac Res Tes Res Distress Signals 8 | . . . 2 . . . . 1 1 . . 3 . . . 1 Communications Jammed 3 | . . . . . . . . . . . . . . 3 . . Distress Signals 3 | . . . . . . . . . . . . . . 3 . . Times Spotted 233 | . 9 20 22 5 19 5 14 12 24 5 6 22 33 11 6 20 Peak Tracking Total 23 | . 4 5 6 2 10 5 3 7 5 5 1 8 23 4 4 7 Tactical Retreats 33 | . 1 . 2 2 5 . 3 3 2 . . 5 1 4 . 5 Traps | -11 -10 -9 -8 -7 -6 -6 -6 -5 -5 -5 -5 -5 -4 -3 -3 -2 ------- Run | Yrd Mat Mat Mat Fac Fac Was Fac Fac Ext Cet Arc Hub Fac Res Tes Res Traps Triggered 18 | . 1 2 . 1 1 . . 3 9 . . . 1 . . . Indirectly . | . . . . . . . . . . . . . . . . . Trap Hack Attempts . | . . . . . . . . . . . . . . . . . Triggered . | . . . . . . . . . . . . . . . . . Disarmed . | . . . . . . . . . . . . . . . . . Reprogrammed 5 | . . . . . . . . . 5 . . . . . . . Reused 2 | . . . . . . . . . 2 . . . . . . . Traps Extracted . | . . . . . . . . . . . . . . . . . Installed . | . . . . . . . . . . . . . . . . . Triggered 2 | . . . . . . . . . 2 . . . . . . . Machines | -11 -10 -9 -8 -7 -6 -6 -6 -5 -5 -5 -5 -5 -4 -3 -3 -2 ---------- Run | Yrd Mat Mat Mat Fac Fac Was Fac Fac Ext Cet Arc Hub Fac Res Tes Res Machines Disabled 15 | . . . . . . . 1 1 3 2 2 . 4 . 2 . Max in Single Turn 4 | . . . . . . . 1 1 1 1 . . 4 . 1 . Garrison Access 5 | . . . . 1 1 . 2 1 . . . . . . . . Machines Repaired . | . . . . . . . . . . . . . . . . . Machines Dismantled . | . . . . . . . . . . . . . . . . . Machines Sabotaged . | . . . . . . . . . . . . . . . . . Overloaded Fab Kills . | . . . . . . . . . . . . . . . . . Hacking | -11 -10 -9 -8 -7 -6 -6 -6 -5 -5 -5 -5 -5 -4 -3 -3 -2 --------- Run | Yrd Mat Mat Mat Fac Fac Was Fac Fac Ext Cet Arc Hub Fac Res Tes Res Machines Accessed 73 | . 3 4 1 12 2 . 17 5 16 1 . 4 1 . 4 3 Terminals 47 | . 3 1 1 4 1 . 10 1 16 1 . 4 . . 3 2 Fabricators 10 | . . . . 4 . . 2 2 . . . . 1 . 1 . Repair Stations 1 | . . . . . . . 1 . . . . . . . . . Recycling Units 7 | . . 2 . 1 . . 2 1 . . . . . . . 1 Scanalyzers 2 | . . 1 . 1 . . . . . . . . . . . . Garrison Access 6 | . . . . 2 1 . 2 1 . . . . . . . . Total Hacks 166 | . 11 8 2 23 7 . 39 11 39 1 . 8 3 . 8 6 Successful 84 | . 6 4 . 13 4 . 24 4 20 1 . 4 1 . 1 2 Failed 82 | . 5 4 2 10 3 . 15 7 19 . . 4 2 . 7 4 Catastrophic 10 | . 1 . . 1 1 . 1 2 2 . . 1 . . 1 . Database Lockouts . | . . . . . . . . . . . . . . . . . Manual 54 | . 2 3 1 8 3 . 17 2 11 1 . 4 . . 2 . Terminals 122 | . 11 3 2 11 5 . 29 2 39 1 . 8 . . 6 5 Fabricators 18 | . . . . 5 . . 3 5 . . . . 3 . 2 . Repair Stations 2 | . . . . . . . 2 . . . . . . . . . Recycling Units 10 | . . 4 . 1 . . 2 2 . . . . . . . 1 Scanalyzers 4 | . . 1 . 3 . . . . . . . . . . . . Garrison Access 10 | . . . . 3 2 . 3 2 . . . . . . . . Terminal Hacks 40 | . 4 . . 3 2 . 8 . 17 1 . 4 . . . 1 Record 2 | . . . . . . . . . 1 . . 1 . . . . Robot Analysis 1 | . . . . . . . . . 1 . . . . . . . Open Door 9 | . . . . . . . . . 8 1 . . . . . . Level Access Points 4 | . 1 . . 1 1 . . . . . . 1 . . . . Branch Access Points 1 | . . . . . . . . . . . . . . . . 1 Emergency Access Points 2 | . . . . . . . . . 1 . . 1 . . . . Terminal Index 2 | . 1 . . . . . 1 . . . . . . . . . Scanalyzer Index 1 | . . . . 1 . . . . . . . . . . . . Alert Level 5 | . . . . 1 . . 3 . 1 . . . . . . . Locate Traps 4 | . 1 . . . . . . . 3 . . . . . . . Reprogram Traps 1 | . . . . . . . . . 1 . . . . . . . Transport Status 1 | . . . . . . . 1 . . . . . . . . . Recall Investigation 1 | . . . . . . . 1 . . . . . . . . . Recall Reinforcements 1 | . . . . . . . 1 . . . . . . . . . Registered Components 1 | . . . . . 1 . . . . . . . . . . . Registered Prototypes 1 | . . . . . . . 1 . . . . . . . . . Zone Layout 3 | . 1 . . . . . . . 1 . . 1 . . . . Fabricator Hacks 9 | . . . . 3 . . 3 1 . . . . 1 . 1 . Network Status 5 | . . . . 2 . . 1 1 . . . . . . 1 . Load Schematic 1 | . . . . . . . 1 . . . . . . . . . Build 3 | . . . . 1 . . 1 . . . . . 1 . . . Repair Station Hacks 2 | . . . . . . . 2 . . . . . . . . . Scan Component 1 | . . . . . . . 1 . . . . . . . . . Repair 1 | . . . . . . . 1 . . . . . . . . . Recycling Unit Hacks 7 | . . 2 . 1 . . 2 1 . . . . . . . 1 Report Inventory 7 | . . 2 . 1 . . 2 1 . . . . . . . 1 Scanalyzer 4 | . . 1 . 3 . . . . . . . . . . . . Insert Component 3 | . . 1 . 2 . . . . . . . . . . . . Analyze 1 | . . . . 1 . . . . . . . . . . . . Garrison Access Hacks 5 | . . . . 1 1 . 2 1 . . . . . . . . Seal Access 5 | . . . . 1 1 . 2 1 . . . . . . . . Unauthorized Hacks 17 | . 2 1 . 2 1 . 7 1 3 . . . . . . . Terminals 17 | . 2 1 . 2 1 . 7 1 3 . . . . . . . Assimilate 1 | . . . . . . . 1 . . . . . . . . . Botnet 16 | . 2 1 . 2 1 . 6 1 3 . . . . . . . Fabricators . | . . . . . . . . . . . . . . . . . Repair Stations . | . . . . . . . . . . . . . . . . . Recycling Units . | . . . . . . . . . . . . . . . . . Scanalyzers . | . . . . . . . . . . . . . . . . . Garrison Access . | . . . . . . . . . . . . . . . . . Data Cores Recovered 2 | . . . . 1 . . 1 . . . . . . . . . Used 1 | . . . . . . . 1 . . . . . . . . . Hacking Detections 52 | . 3 1 1 8 2 . 15 3 10 1 . 1 1 . 4 2 Full Trace Events 6 | . . . . . . . 3 1 2 . . . . . . . Feedback Events . | . . . . . . . . . . . . . . . . . Feedback Blocked . | . . . . . . . . . . . . . . . . . Robot Schematics Acquired . | . . . . . . . . . . . . . . . . . Robots Built . | . . . . . . . . . . . . . . . . . Authchips . | . . . . . . . . . . . . . . . . . Time . | . . . . . . . . . . . . . . . . . Total Robot Build Rating . | . . . . . . . . . . . . . . . . . Part Schematics Acquired 1 | . . . . 1 . . . . . . . . . . . . Parts Built 4 | . . . . 1 . . 1 . . . . . 2 . . . Authchips . | . . . . . . . . . . . . . . . . . Time 329 | . . . . 95 . . 95 . . . . . 139 . . . Total Part Build Rating 28 | . . . . 5 . . 5 . . . . . 18 . . . Parts Repaired 1 | . . . . . . . 1 . . . . . . . . . Time 26 | . . . . . . . 26 . . . . . . . . . Parts Recycled . | . . . . . . . . . . . . . . . . . Recycled Matter . | . . . . . . . . . . . . . . . . . Retrieved Matter . | . . . . . . . . . . . . . . . . . Retrieved Components . | . . . . . . . . . . . . . . . . . Parts Scanalyzed 1 | . . . . 1 . . . . . . . . . . . . Part Schematics Acquired 1 | . . . . 1 . . . . . . . . . . . . Parts Damaged . | . . . . . . . . . . . . . . . . . Bothacking | -11 -10 -9 -8 -7 -6 -6 -6 -5 -5 -5 -5 -5 -4 -3 -3 -2 ------------ Run | Yrd Mat Mat Mat Fac Fac Was Fac Fac Ext Cet Arc Hub Fac Res Tes Res Used RIF Installer . | . . . . . . . . . . . . . . . . . Robots Hacked . | . . . . . . . . . . . . . . . . . Non-combat . | . . . . . . . . . . . . . . . . . Combat . | . . . . . . . . . . . . . . . . . Robot Hacks Applied . | . . . . . . . . . . . . . . . . . Relay Couplers Released . | . . . . . . . . . . . . . . . . . Fabnet Peak Effective % . | . . . . . . . . . . . . . . . . . Robots Rewired 10 | . . . . . . . . . 10 . . . . . . . Allies Hacked . | . . . . . . . . . . . . . . . . . Hacks Repelled . | . . . . . . . . . . . . . . . . . Allies | -11 -10 -9 -8 -7 -6 -6 -6 -5 -5 -5 -5 -5 -4 -3 -3 -2 -------- Run | Yrd Mat Mat Mat Fac Fac Was Fac Fac Ext Cet Arc Hub Fac Res Tes Res Total Allies 27 | . . . . . . . . . 22 5 . . . . . . Largest Group 9 | . . . . . . . . . 9 7 7 6 . . . . Highest-Rated Group 538 | . . . . . . . . . 337 538 538 499 . . . . Highest-Rated Ally 159 | . . . . . . . . . 159 134 96 96 . . . . Total Orders . | . . . . . . . . . . . . . . . . . Ally Attacks 220 | . . . . . . . . . 129 16 23 52 . . . . Total Damage 6063 | . . . . . . . . . 3052 460 459 2092 . . . . Kills 39 | . . . . . . . . . 18 6 4 11 . . . . Allies Corrupted . | . . . . . . . . . . . . . . . . . Allies Melted . | . . . . . . . . . . . . . . . . . Intel | -11 -10 -9 -8 -7 -6 -6 -6 -5 -5 -5 -5 -5 -4 -3 -3 -2 ------- Run | Yrd Mat Mat Mat Fac Fac Was Fac Fac Ext Cet Arc Hub Fac Res Tes Res Robot Analysis Total 1 | . . . . . . . . . 1 . . . . . . . Derelict Logs Recovered . | . . . . . . . . . . . . . . . . . Drone Launches . | . . . . . . . . . . . . . . . . . Drone Recoveries . | . . . . . . . . . . . . . . . . . Exploration | -11 -10 -9 -8 -7 -6 -6 -6 -5 -5 -5 -5 -5 -4 -3 -3 -2 ------------- Run | Yrd Mat Mat Mat Fac Fac Was Fac Fac Ext Cet Arc Hub Fac Res Tes Res Turns Passed 9486 | 86 750 686 630 749 241 31 1205 549 1588 357 132 589 559 341 120 873 Spaces Moved 9027 | 47 378 293 215 1409 724 113 2134 466 880 126 46 464 315 477 221 719 Core 492 | 6 . . . . . . . 2 . 38 . 23 153 171 . 99 Treads 1398 | 41 378 293 215 4 . . . . 152 88 46 181 . . . . Legs . | . . . . . . . . . . . . . . . . . Wheels . | . . . . . . . . . . . . . . . . . Hover 578 | . . . . . . . . . . . . 260 162 151 . 5 Flight 6559 | . . . . 1405 724 113 2134 464 728 . . . . 155 221 615 Fastest Speed 22 | 50 160 160 170 27 22 26 26 24 23 50 240 50 50 35 35 35 Average Speed 61 | 145 160 166 170 28 26 26 26 31 86 219 240 108 69 52 35 66 Slowest Speed 450 | 160 160 170 170 170 97 26 26 300 240 350 240 240 100 117 35 450 Overloaded Moves 57 | . . . . . 57 . . . . . . . . . . . Propulsion Burnouts . | . . . . . . . . . . . . . . . . . Robots Hopped 24 | . . . . . 7 . 7 4 2 . . . . 1 3 . Cave-ins Triggered 1 | . . . . . . . . . 1 . . . . . . . Exploration Rate (%) 37 | 4 61 28 23 37 14 75 38 11 78 68 83 47 17 17 28 11 Regions Visited 16 Branch Regions 5 Pre-discovered Areas . | . . . . . . . . . . . . . . . . . Known Exits Taken 13 | . 1 1 1 1 . . 1 1 1 1 1 1 1 1 1 . Unknown Exits Taken 1 | 1 . . . . . . . . . . . . . . . . Scrap Searched . | . . . . . . . . . . . . . . . . . Spaces Dug 103 | . . . . 8 1 . 1 2 81 . . . 2 . 1 7 Terrain Destroyed 305 | . . . 12 8 1 . 1 2 182 49 3 1 38 . 1 7 Melee 22 | . . . . 8 1 . 1 2 . . . . 2 . 1 7 Projectile 4 | . . . . . . . . . . . 3 1 . . . . AOE 279 | . . . 12 . . . . . 182 49 . . 36 . . . Terrain Rammed . | . . . . . . . . . . . . . . . . . Walls Destroyed . | . . . . . . . . . . . . . . . . . Machines Disabled . | . . . . . . . . . . . . . . . . . Actions | -11 -10 -9 -8 -7 -6 -6 -6 -5 -5 -5 -5 -5 -4 -3 -3 -2 --------- Run | Yrd Mat Mat Mat Fac Fac Was Fac Fac Ext Cet Arc Hub Fac Res Tes Res Total 12507 | 66 503 412 403 1741 756 113 2763 830 1666 202 55 515 651 552 257 1022 Wait 2664 | . 96 50 131 287 23 . 585 310 507 65 1 16 308 25 25 235 Move 8964 | 46 377 292 214 1408 711 112 2119 457 874 125 45 463 314 474 214 719 Hop 23 | . . . . . 6 . 7 4 2 . . . . 1 3 . Pick Up 110 | 13 12 6 4 8 4 1 13 9 7 . . 3 7 13 3 7 Fast Attach 22 | . . 2 2 . . . . . . 3 1 10 . 3 1 . Attach 102 | 6 2 2 2 9 6 . 1 18 18 2 . 3 9 14 3 7 Detach 34 | . 1 . . 1 . . 1 6 14 2 . . . 6 1 2 Swap 24 | . 1 6 2 4 . . 8 1 . . . . . . . 2 Drop 71 | 1 2 12 4 11 1 . 15 1 3 . . 4 7 5 4 1 Fire 133 | . 11 42 44 . . . . . 11 5 8 9 . . . 3 Melee 146 | . . . . 13 5 . 14 24 19 . . 7 5 11 3 45 Ram 2 | . . . . . . . . . . . . . 1 . . 1 Kick . | . . . . . . . . . . . . . . . . . Crush 1 | . 1 . . . . . . . . . . . . . . . Escape Stasis 163 | . . . . . . . . . 163 . . . . . . . Rewire 48 | . . . . . . . . . 48 . . . . . . . Trap . | . . . . . . . . . . . . . . . . . Miscellaneous . | . . . . . . . . . . . . . . . . . Route ------- -11/Scrapyard -10/Materials (discovered 3 exits: *Mat x3) -9/Materials -8/Materials -7/Factory (discovered 6 exits: *Fac x4 / *Sto / *Low) -6/Factory (discovered 4 exits: *Fac x4) -6/Waste -6/Factory -5/Factory -5/Extension (discovered 2 exits: *Fac / *Cet) -5/Cetus -5/Archives (discovered 2 exits: *Fac / *Hub) -5/Hub_04(d) (discovered 4 exits: *Fac x4) -4/Factory -3/Research -3/Testing -2/Research (discovered 2 exits: Qua x2) History --------- Turn | Location | Event 7 | -11/Scrapyard | Discovered new exit (range 16) 87 | -11/Scrapyard | Entered Materials 332 | -10/Materials | Build established: Mutant 382 | -10/Materials | Identified exit to Materials 837 | -10/Materials | Entered another Materials area 837 | -9/Materials | Evolved 2 slots: Propulsion x2 1448 | -9/Materials | Discovered new exit (range 5) 1454 | -9/Materials | Identified exit to Materials 1523 | -9/Materials | Entered another Materials area 1523 | -8/Materials | Evolved 2 slots: Utility x2 2099 | -8/Materials | Discovered new exit (range 15) 2151 | -8/Materials | Identified exit to Factory 2153 | -8/Materials | Entered Factory 2153 | -7/Factory | Evolved 2 slots: Propulsion x1, Utility x1 2294 | -7/Factory | Fabricated Imp. Hacking Suite (x1) 2382 | -7/Factory | Discovered new exit (range 7) 2383 | -7/Factory | Identified exit to Lower Caves 2471 | -7/Factory | Build established: Infiltrator-Ninja 2489 | -7/Factory | Discovered new exit (range 4) 2489 | -7/Factory | Identified exit to Storage 2591 | -7/Factory | Identified exit to Factory 2902 | -7/Factory | Entered another Factory area 2902 | -6/Factory | Evolved 2 slots: Utility x2 3022 | -6/Factory | Identified exit to Factory 3143 | -6/Factory | Sucked down chute 3143 | -6/Factory | Entered Waste 3154 | -6/Waste | Spotted C-40 Crusher 3156 | -6/Waste | Spotted C-40 Crusher 3156 | -6/Waste | Spotted C-40 Crusher 3157 | -6/Waste | Spotted C-40 Crusher 3159 | -6/Waste | Spotted C-40 Crusher 3165 | -6/Waste | Spotted C-40 Crusher 3169 | -6/Waste | Discovered new exit (range 14) 3173 | -6/Waste | Identified exit to Factory 3174 | -6/Waste | Entered Factory 3218 | -6/Factory | Repaired Sensor Array 3517 | -6/Factory | Build established: Hacker-Ninja 4179 | -6/Factory | Fabricated Imp. Hacking Suite (x1) 4188 | -6/Factory | Discovered exit to Factory (range 6) 4379 | -6/Factory | Entered another Factory area 4379 | -5/Factory | Evolved 2 slots: Utility x2 4470 | -5/Factory | Lost 5 parts (2n3u) 4854 | -5/Factory | Build established: Hacker-Scout 4916 | -5/Factory | Discovered new exit (range 19) 4928 | -5/Factory | Identified exit to Extension 4928 | -5/Factory | Entered Extension 5174 | -5/Extension | Build established: Scavenger-Scout 5519 | -5/Extension | Rescued a captive Derelict 5571 | -5/Extension | Lost 3 allies 5591 | -5/Extension | Rescued a captive Derelict 5591 | -5/Extension | Rescued a captive Derelict 5629 | -5/Extension | Build established: Scavenger-Assassin 5653 | -5/Extension | Lost 3 allies 5665 | -5/Extension | Rescued a captive Derelict 5666 | -5/Extension | Rescued a captive Derelict 5673 | -5/Extension | Rescued a captive Derelict 5688 | -5/Extension | Rescued a captive Derelict 5703 | -5/Extension | Rescued A7 5889 | -5/Extension | Spotted B-75 Beast 6085 | -5/Extension | Crushed by falling debris 6086 | -5/Extension | System corruption reached 10% 6116 | -5/Extension | Lost 3 parts (2n1u) 6358 | -5/Extension | Rescued a captive Derelict 6359 | -5/Extension | Rescued a captive Derelict 6379 | -5/Extension | Rescued a captive Derelict 6379 | -5/Extension | Rescued a captive Derelict 6413 | -5/Extension | Build established: Hacker-Mutant 6465 | -5/Extension | Discovered new exit (range 10) 6467 | -5/Extension | Discovered new exit (range 6) 6512 | -5/Extension | Identified exit to Cetus 6516 | -5/Extension | Entered Cetus 6516 | -5/Cetus | Accompanied by 6 allies (A7) 6521 | -5/Cetus | Acquired a Cetus Manufacturing Module code from A7 6536 | -5/Cetus | Spotted Cetus Guard 6536 | -5/Cetus | Spotted Cetus Guard 6536 | -5/Cetus | Spotted Cetus Guard 6536 | -5/Cetus | Spotted Cetus Guard 6548 | -5/Cetus | Allies destroyed Cetus Guard 6553 | -5/Cetus | Core integrity fell below 50% 6556 | -5/Cetus | Allies destroyed Cetus Guard 6558 | -5/Cetus | Allies destroyed Cetus Guard 6570 | -5/Cetus | Allies destroyed A7 6571 | -5/Cetus | Allies destroyed Cetus Guard 6573 | -5/Cetus | Extracted ID and sensor layout for unrecognized location from A7's data core 6582 | -5/Cetus | Lost 4 parts (1n2u1w) 6601 | -5/Cetus | Lost 4 allies 6694 | -5/Cetus | Started Cetus Manufacturing Module 6719 | -5/Cetus | Manufactured an Enhanced Grunt 6744 | -5/Cetus | Manufactured an Enhanced Grunt 6769 | -5/Cetus | Manufactured an Enhanced Grunt 6794 | -5/Cetus | Manufactured an Enhanced Grunt 6819 | -5/Cetus | Manufactured an Enhanced Grunt 6823 | -5/Cetus | Discovered new exit (range 22) 6871 | -5/Cetus | Identified exit to Archives 6873 | -5/Cetus | Entered Archives 6873 | -5/Archives | Accompanied by 7 allies 6957 | -5/Archives | Discovered new exit (range 21) 6962 | -5/Archives | Discovered new exit (range 16) 7003 | -5/Archives | Identified exit to Hub_04(d) 7005 | -5/Archives | Entered Hub_04(d) 7005 | -5/Hub_04(d) | Accompanied by 6 allies 7210 | -5/Hub_04(d) | Build established: Scavenger-Mutant 7267 | -5/Hub_04(d) | Identified exit to Factory 7291 | -5/Hub_04(d) | Lost 3 allies 7521 | -5/Hub_04(d) | Spotted B-75 Beast 7549 | -5/Hub_04(d) | Core integrity fell below 20% 7594 | -5/Hub_04(d) | Entered Factory 7594 | -4/Factory | Evolved 2 slots: Utility x2 7615 | -4/Factory | Lost 3 parts (1u2w) 7743 | -4/Factory | Fabricated Cmb. Linear Gravjet (x2) 7804 | -4/Factory | Spotted B-86 Titan 7874 | -4/Factory | Build established: Mutant 8145 | -4/Factory | Cargo convoy interrupted 8145 | -4/Factory | Spotted Striker 8145 | -4/Factory | Spotted Executioner 8147 | -4/Factory | Discovered new exit (range 7) 8149 | -4/Factory | Core integrity fell below 50% 8153 | -4/Factory | Identified exit to Research 8153 | -4/Factory | Entered Research 8153 | -3/Research | Evolved 2 slots: Power x1, Propulsion x1 8178 | -3/Research | Lost 5 parts (1p2n1u1w) 8331 | -3/Research | Build established: Hacker-Mutant 8489 | -3/Research | Discovered new exit (range 11) 8492 | -3/Research | Identified exit to Testing 8493 | -3/Research | Found Fusion Bomb Launcher 8494 | -3/Research | Entered Testing 8498 | -3/Testing | Found Prototype Hackware 8498 | -3/Testing | Identified Exp. System Shield 8550 | -3/Testing | Found Prototype Device 8551 | -3/Testing | Identified 2N-1CE's Frost Array 8560 | -3/Testing | Found Prototype Energy Gun 8561 | -3/Testing | Identified Hyp. EM Gauss Rifle 8567 | -3/Testing | Discovered new exit (range 15) 8573 | -3/Testing | Identified exit to Research 8614 | -3/Testing | Entered Research 8614 | -2/Research | Evolved 2 slots: Utility x2 8691 | -2/Research | Identified exit to Quarantine 8694 | -2/Research | Spotted B-90 Cyclops 9370 | -2/Research | Core integrity fell below 50% 9382 | -2/Research | Lost 11 parts (4n7u) 9482 | -2/Research | Core integrity fell below 20% 9487 | -2/Research | Destroyed by G-73 Enforcer with Heavy Laser Last Messages --------------- G-73 Enforcer destroyed. Acquired 10 matter. Acquired Lgt. Quantum Reactor. Acquired 10 matter. R-10 Processor collects Adv. Heat Sink. R-10 Processor collects Myomer Leg. R-10 Processor collects Adv. Heat Sink. Acquired Imp. Antigrav System. Imp. Terrain Scanner destroyed. Acquired 5 matter. System corrupted: Heat flow error (+296). Destroyed Imp. Antigrav System. Imp. Antigrav System destroyed. Lgt. Quantum Reactor destroyed. System corrupted: Substantial component data lost. Hacking Suite destroyed. Slammed into P-80 Master. Destabilizing: System interference. Enh. Optical Array temporarily disabled. Map ----- +----------------------------------------------------+ | ?????????????????????????????????????????????????? | | ?????????????????????????????????????????????????? | | ?????????????????????????????????????????????????? | | ?????????????????????????????????????????????????? | | ?????????????????????????????????????????????????? | | ?????????????????????????????????????????????????? | | ?????????????????????????????????????????????????? | | ?????????????????????????????????????????????????? | | ?????????????????????????????????????????????????? | | ?????????????????????????????????????????????????? | | ?????????????????????????????????????????????????? | | ?????????????????????????????????????????????????? | | ?????????????????????????????? ?????????????????? | | ????????????????????????????? ?????????????????? | | ????????????????????????????? ??????????????????? | | ?????????????????????? ????? ??????????????????? | | ???????????????????????????? ???????????????????? | | ??????????????????#????????? ???????????????????? | | ?????????????????????????### ????????????????????? | | ???????????????#??#?????? ????????????????????? | | ????????????????????? ??? ????????? ???????????? | | ???????????????#????????? ????#????????????????? | | ???????????????#????????##p#####????#????????????? | | ?????????????????#???? ?# ! #?????????????????? | | ???????????????????#????# #????????????????? | | ??????????????###### ???#@ /] #?????????????????? | | ??????????????# ? ?# ]] #?##??????????????? | | ??????????????# ??# g g #????#?????####???? | | ??????????? ??# ??# #??????????# ??? | | ??????????????# = ?# #? ????????# ?? | | ??????????????# ## ##??? ??#### ? | | ??????????????# g #? ??? + | | ??????????????+ ## g ##?? ?? ??????# | | ??????????????###+#####?# #? ???????????# | | ???????????????? ?? ?#?# ##??? ??#?? ??# | | ?????????????????? ?????# p #????????#????# | | ???????????? ?#????????####/####?#???????????# | | ??????????????#??? ? ?????#%#????#??#?#??? ??# | | ?????????????????? ??????##%###????#?#??? ? ?# | | ????????????#?# ????????###w####????##???????# | | ????????????###???##?????#% ##??#?????????# | | ????????????????????####?# #??????????? ?# | | ?????????????#???????#??## ###??#??????#?# | | ?????????????????##??#???# #??#?#?#??????# " | | ???????????????#??#??##??# ##???????#????# " | | ???????#?????#?????###???# #??#??????????# " | | ????????#????#?????#?#??## ###?#?????????# | | ???????????????????????### ####????????### | | ???????????############### #?#??????#??# | | ???????????# = ## #???????#??## | +----------------------------------------------------+ Best States ------------- Heat Dissipation 49 Energy Generation 25 Energy Capacity 350 Matter Stores 300 Matter Capacity 300 Sight Range 22 Robot Scan Range 15 Terrain Scan Range 16 Terrain Scan Density 10 ECM Strength 2 Jamming Range 16 Cloak Strength 2 Armor Coverage 300 Evasion (%) 75 Targeting Accuracy 30 Core Analysis 6 Recoil Reduction 4 Offensive Hacking 34 Defensive Hacking 30 Item Schematics ----------------- Imp. Hacking Suite | -7/Factory | Scanalyzed Robot Schematics ------------------ None Fabricated ------------ Imp. Hacking Suite | x1 | -7/Factory | Preloaded Imp. Hacking Suite | x1 | -6/Factory Cmb. Linear Gravjet | x2 | -4/Factory | Preloaded Alien Tech Used ----------------- None Achievements -------------- None Challenges ------------ None Game ------ Seed CorruptionSuperquantumSuit Manual? 0 Play Time 02:03:11 Cumulative 54.0 hours Start 2024.12.23 @ 17:31:14 End 2024.12.23 @ 19:59:34 Sessions 1 Manual Loads 0 Difficulty Rogue Special Mode None Game No. 59 Rogue 59 Adventurer 0 Explorer 0 Win Type - Total 1 Types 1/0/0/0/0/0/0/0/0 Lore% 28 Gallery% 35 Achievement% 34 Wizard Run 0 Options --------- Layout 1 ASCII 0 Keyboard 0 Movement Mouse Keybinds 0 Fullscreen 1 Font 24/Smallcaps Map View 50x35 Zoom Use 0% Tactical HUD 0 Map Filters NONE Filters NONE Steam 1 RUN: c5618415-ccdc-465b-b127-b39402c4a176